fUSD/lending_fUSD_20250811
["ID","MTS","AMOUNT","RATE_DAILY","PERIOD"]
[378671910,1754953843016,-400.0,0.00016438,2]
[378671912,1754953843026,-400.0,0.00016438,2]
[378671914,1754953843035,-606.86,0.00016438,2]
[378671916,1754953843046,-400.0,0.00016438,2]
[378671918,1754953843055,-485.97,0.00016438,2]
[378671920,1754953843064,-500.61136749,0.00016438,2]
[378671922,1754953843074,-406.67,0.00016438,2]
[378671924,1754953843083,-880.09,0.00016438,2]
[378671926,1754953843093,-400.0,0.00016438,2]
[378671928,1754953843102,-546.27,0.00016438,2]
[378671930,1754953843112,-400.0,0.00016438,2]
[378671932,1754953843122,-400.0,0.00016438,2]
[378671934,1754953843131,-400.0,0.00016438,2]
[378671936,1754953843140,-644.48,0.00016438,2]
[378671938,1754953843149,-1645.58,0.00016438,2]
[378671940,1754953843159,-400.0,0.00016438,2]
[378671942,1754953843168,-400.0,0.00016438,2]
[378671944,1754953843177,-400.0,0.00016438,2]
[378671946,1754953843186,-400.0,0.00016438,2]
[378671948,1754953843195,-7680.93,0.00016438,2]
[378671950,1754953843204,-400.0,0.00016438,2]
[378671952,1754953843214,-400.0,0.00016438,2]
[378671954,1754953843224,-1050.35,0.00016438,2]
[378671956,1754953843233,-211.70510228,0.00016438,2]
[378671958,1754953843242,-403.46039275,0.00016438,2]
[378671960,1754953843251,-400.0,0.00016438,2]
[378671962,1754953843260,-400.0,0.00016438,2]
[378671964,1754953843270,-400.0,0.00016438,2]
[378671966,1754953843279,-435.66,0.00016438,2]
[378671968,1754953843288,-400.0,0.00016438,2]
[378671970,1754953843298,-400.0,0.00016438,2]
[378671972,1754953843307,-703.54,0.00016438,2]
[378671974,1754953843316,-1570.27,0.00016438,2]
[378671976,1754953843325,-400.0,0.00016438,2]
[378671978,1754953843334,-400.0,0.00016438,2]
[378671980,1754953843343,-399.4880798,0.00016438,2]
[378671983,1754953843363,-0.5119202,0.00016438,2]
[378671985,1754953843372,-400.0,0.00016438,2]
[378671987,1754953843382,-400.0,0.00016438,2]
[378671989,1754953843391,-550.09,0.00016438,2]
[378671991,1754953843401,-766.37,0.00016438,2]
[378671993,1754953843410,-1312.96,0.00016438,2]
[378671995,1754953843420,-543.06,0.00016438,2]
[378671997,1754953843429,-531.97,0.00016438,2]
[378671999,1754953843439,-400.0,0.00016438,2]
[378672001,1754953843448,-400.0,0.00016438,2]
[378672003,1754953843457,-493.96230348,0.00016438,2]
[378672235,1754953845831,516.0,0.00015076,2]
[378672241,1754953845877,-27.51769652,0.00016438,2]
[378672243,1754953845886,-496.50428537,0.00016438,2]
[378672249,1754953845936,-547.8517797,0.00016438,2]
[378672251,1754953845947,-232.65393493,0.00016438,2]
[378672253,1754953845956,-713.06,0.00016438,2]
[378672255,1754953845965,-545.31,0.00016438,2]
[378672257,1754953845975,-400.0,0.00016438,2]
[378672259,1754953845985,-400.0,0.00016438,2]
[378672261,1754953845994,-400.0,0.00016438,2]
[378672263,1754953846003,-400.0,0.00016438,2]
[378672265,1754953846012,-1045.78,0.00016438,2]
[378672267,1754953846021,-581.15,0.00016438,2]
[378672269,1754953846031,-442.21,0.00016438,2]
[378672271,1754953846040,-602.93,0.00016438,2]
[378672273,1754953846049,-400.0,0.00016438,2]
[378672275,1754953846058,-1159.0,0.00016438,2]
[378672277,1754953846068,-400.0,0.00016438,2]
[378672279,1754953846077,-400.0,0.00016438,2]
[378672281,1754953846087,-711.4,0.00016438,2]
[378672283,1754953846096,-400.0,0.00016438,2]
[378672285,1754953846105,-495.54,0.00016438,2]
[378672287,1754953846114,-400.0,0.00016438,2]
[378672289,1754953846124,-468.93,0.00016438,2]
[378672291,1754953846133,-708.0,0.00016438,2]
[378672293,1754953846142,-479.17,0.00016438,2]
[378672295,1754953846151,-400.0,0.00016438,2]
[378672297,1754953846160,-400.0,0.00016438,2]
[378672299,1754953846170,-400.46,0.00016438,2]
[378672301,1754953846179,-507.63,0.00016438,2]
[378672303,1754953846188,-400.0,0.00016438,2]
[378672305,1754953846197,-795.61,0.00016438,2]
[378672307,1754953846207,-400.0,0.00016438,2]
[378672309,1754953846216,-400.0,0.00016438,2]
[378672311,1754953846225,-406.81,0.00016438,2]
[378672313,1754953846234,-400.0,0.00016438,2]
[378672315,1754953846243,-400.0,0.00016438,2]
[378672317,1754953846253,-1180.02,0.00016438,2]
[378672319,1754953846262,-558.66,0.00016438,2]
[378672321,1754953846271,-476.82,0.00016438,2]
[378672323,1754953846280,-400.0,0.00016438,2]
[378672325,1754953846290,-847.75,0.00016438,2]
[378672327,1754953846299,-400.0,0.00016438,2]
[378672329,1754953846308,-1476.47,0.00016438,2]
[378672331,1754953846318,-400.0,0.00016438,2]
[378672333,1754953846328,-400.0,0.00016438,2]
[378672335,1754953846337,-400.0,0.00016438,2]
[378672337,1754953846346,-599.21006506,0.00016438,2]
[378672385,1754953846731,-309.38993494,0.00016438,2]
[378672387,1754953846741,-400.0,0.00016438,2]
[378672389,1754953846750,-862.99,0.00016438,2]
[378672391,1754953846759,-400.0,0.00016438,2]
[378672393,1754953846768,-674.69,0.00016438,2]
[378672395,1754953846778,-400.0,0.00016438,2]
[378672397,1754953846787,-400.0,0.00016438,2]
[378672399,1754953846796,-632.61,0.00016438,2]
[378672401,1754953846806,-400.0,0.00016438,2]
[378672403,1754953846815,-400.0,0.00016438,2]
[378672405,1754953846825,-989.02,0.00016438,2]
[378672407,1754953846834,-1169.28,0.00016438,2]
[378672409,1754953846845,-400.0,0.00016438,2]
[378672411,1754953846854,-400.0,0.00016438,2]
[378672413,1754953846863,-400.0,0.00016438,2]
[378672415,1754953846872,-225.62006512,0.00016438,2]
[378673225,1754953861674,1000.0,0.00015608,2]
[378673226,1754953904295,150.0,0.00015551,2]
[378673233,1754953959339,5374.47,0.00015541,2]
[378673235,1754953998582,157.02,0.00015545,2]
[378673236,1754953998778,157.02,0.00015584,2]
[378673237,1754953998984,157.02,0.00015623,2]
[378673238,1754953999220,157.02,0.00015661,2]
[378673239,1754953999490,157.02,0.000157,2]
[378673240,1754954152641,13759.26,0.00015517,2]
[378673242,1754954187413,248.7,0.0001551,2]
[378673243,1754954267627,196.44,0.00015498,2]
[378673244,1754954288522,-200.0,0.000167,6]
[378673245,1754954288572,-500.0,0.000168,6]
[378673246,1754954288598,-800.0,0.000169,6]
[378673247,1754954299274,-566.32861,0.00017,10]
[378673248,1754954299298,-566.32861,0.00017,10]
[378673249,1754954299322,-566.32861,0.00017,10]
[378673250,1754954299344,-566.32861,0.00017,10]
[378673251,1754954299367,-566.32861,0.00017,10]
[378673252,1754954308820,164.42,0.00015485,2]
[378673253,1754954315577,-1000.0,0.000178,6]
[378673254,1754954315626,-1072.35695,0.000179,6]
[378673255,1754954349286,687.848654,0.00016,2]
[378673258,1754954505160,186.87,0.00015476,2]
[378673259,1754954505640,513.0,0.00015322,2]
[378673266,1754954541281,3441.23,0.00015471,2]
[378673267,1754954614916,1000.0,0.00016003,2]
[378673268,1754954626570,166.95,0.00015507,2]
[378673269,1754954724218,386.98,0.0001546,2]
[378673274,1754954813937,213.46,0.00013699,2]
[378673278,1754954944016,1000.0,0.00015456,2]
[378673282,1754955032071,-331.88434532,0.00016162,2]
[378673283,1754955032115,-717.51055932,0.00016162,2]
[378673284,1754955032124,-300.0,0.00016218,2]
[378673286,1754955032134,-154.24173999,0.00016262,2]
[378673287,1754955032143,-300.0,0.00016263,2]
[378673288,1754955032153,-7.50816297,0.00016269,2]
[378673289,1754955032165,-1192.49183703,0.00016269,2]
[378673290,1754955032174,-270.22542035,0.00016338,2]
[378673291,1754955032195,-1431.28983199,0.00016338,2]
[378673292,1754955032205,-972.3602,0.00016338,2]
[378673293,1754955032214,-1200.0,0.00016356,2]
[378673294,1754955032223,-300.0,0.00016356,2]
[378673295,1754955032232,-669.18049446,0.00016357,2]
[378673296,1754955032243,-162.79896212,0.00016357,2]
[378673297,1754955032252,-514.24383771,0.000164,2]
[378673298,1754955032261,-514.24383766,0.000164,2]
[378673299,1754955032272,-350.0,0.00016422,2]
[378673300,1754955032282,-150.99,0.00016422,2]
[378673301,1754955032293,-2563.66,0.00016422,2]
[378673302,1754955032303,-2183.31810187,0.00016428,2]
[378673303,1754955032312,-231.28369723,0.00016428,2]
[378673304,1754955032321,-5204.65,0.00016428,2]
[378673305,1754955032333,-2782.59238532,0.00016438,2]
[378673306,1754955032353,-9294.00578405,0.00016438,2]
[378673307,1754955032392,-888.82076337,0.00016438,2]
[378673315,1754955035572,175.8,0.0001551,2]
[378673316,1754955038378,-5664.0,0.00016346,2]
[378674180,1754955047444,-213.67584542,0.00016346,2]
[378676265,1754955129610,4674.81,0.00015472,2]
[378676273,1754955154808,250.0,0.00015481,2]
[378676274,1754955160547,162.26,0.00015491,2]
[378676275,1754955160804,162.26,0.000155,2]
[378676276,1754955161016,162.26,0.00015508,2]
[378676277,1754955161266,162.26,0.00015516,2]
[378676278,1754955161568,162.26,0.00015524,2]
[378676279,1754955161806,162.26,0.00015532,2]
[378676280,1754955162207,162.26,0.0001554,2]
[378676281,1754955162445,162.26,0.00015548,2]
[378676282,1754955162644,162.26,0.00015557,2]
[378676283,1754955162886,162.26,0.00015565,2]
[378676284,1754955163101,162.26,0.00015573,2]
[378676285,1754955163507,162.26,0.00015581,2]
[378676286,1754955163712,162.26,0.00015589,2]
[378676287,1754955163949,162.26,0.00015597,2]
[378676288,1754955164191,162.26,0.00015606,2]
[378676289,1754955164386,162.26,0.00015614,2]
[378676290,1754955164598,162.26,0.00015622,2]
[378676291,1754955164814,162.26,0.0001563,2]
[378676292,1754955165234,162.26,0.00015638,2]
[378676293,1754955165440,162.26,0.00015646,2]
[378676294,1754955195425,513.0,0.00015674,2]
[378676295,1754955204731,219.93,0.00015479,2]
[378676296,1754955215037,388.63,0.00015472,2]
[378676297,1754955227429,154.4098682,0.000156,2]
[378676298,1754955399751,170.0,0.0001541,7]
[378676299,1754955458561,14452.16,0.00015414,2]
[378676300,1754955563669,386.42,0.00015432,2]
[378676301,1754955623941,167.05,0.00015881,2]
[378676304,1754955665864,684.730044,0.00015972,2]
[378676305,1754955671750,180.66,0.00015507,2]
[378676310,1754955790623,338.24,0.00015401,2]
[378676311,1754955815092,514.11,0.00015406,2]
[378676312,1754955860192,38014.5,0.0001539,2]
[378676313,1754955883165,1000.0,0.00015391,2]
[378676317,1754956121021,150.0,0.00015379,2]
[378676320,1754956186203,180.31,0.00015383,2]
[378676321,1754956200589,175.94,0.00015383,2]
[378676324,1754956232395,-192.62003563,0.00016007,2]
[378676325,1754956232404,-250.0,0.00016023,2]
[378676326,1754956232414,-300.0,0.0001604,2]
[378676327,1754956232423,-168.0,0.00016093,2]
[378676328,1754956232432,-175.94,0.00016152,2]
[378676329,1754956232442,-141.49015088,0.00016153,2]
[378676330,1754956232453,-26.50984912,0.00016153,2]
[378676331,1754956232463,-223.28725232,0.0001618,2]
[378676332,1754956232472,-300.0,0.00016268,2]
[378676333,1754956232482,-300.0,0.00016268,2]
[378676334,1754956232491,-200.00141948,0.00016268,2]
[378676335,1754956232523,-999.99858052,0.00016268,2]
[378676336,1754956232532,-452.80258836,0.00016269,2]
[378676337,1754956232558,-97.19741164,0.00016269,2]
[378676338,1754956232567,-180.66,0.00016282,2]
[378676339,1754956232576,-2183.31810187,0.00016328,2]
[378676340,1754956232585,-231.28369723,0.00016328,2]
[378676341,1754956232595,-213.34611517,0.00016336,2]
[378676342,1754956232605,-200.0,0.00016337,2]
[378676343,1754956232614,-160.0,0.00016337,2]
[378676345,1754956232624,-346.92554585,0.00016337,2]
[378676347,1754956232633,-500.0,0.00016337,2]
[378676349,1754956232642,-500.0,0.00016337,2]
[378676351,1754956232652,-151.0,0.00016337,2]
[378676353,1754956232661,-500.0,0.00016337,2]
[378676355,1754956232670,-600.0,0.00016337,2]
[378676357,1754956232683,-151.0,0.00016337,2]
[378676358,1754956232693,-500.0,0.00016337,2]
[378676360,1754956232702,-500.0,0.00016337,2]
[378676362,1754956232712,-500.0,0.00016337,2]
[378676364,1754956232723,-500.0,0.00016337,2]
[378676366,1754956232732,-500.0,0.00016337,2]
[378676368,1754956232741,-500.0,0.00016337,2]
[378676371,1754956232752,-500.0,0.00016337,2]
[378676374,1754956232762,-500.0,0.00016337,2]
[378676377,1754956232770,-500.0,0.00016337,2]
[378676380,1754956232780,-500.0,0.00016337,2]
[378676383,1754956232789,-500.0,0.00016337,2]
[378676386,1754956232798,-500.0,0.00016337,2]
[378676389,1754956232807,-500.0,0.00016337,2]
[378676392,1754956232817,-500.0,0.00016337,2]
[378676394,1754956232826,-500.0,0.00016337,2]
[378676396,1754956232835,-500.0,0.00016337,2]
[378676398,1754956232845,-500.0,0.00016337,2]
[378676401,1754956232854,-500.0,0.00016337,2]
[378676404,1754956232863,-500.0,0.00016337,2]
[378676407,1754956232872,-500.0,0.00016337,2]
[378676408,1754956232882,-500.0,0.00016337,2]
[378676411,1754956232891,-500.0,0.00016337,2]
[378676413,1754956232901,-500.0,0.00016337,2]
[378676414,1754956232910,-151.0,0.00016337,2]
[378676416,1754956232919,-500.0,0.00016337,2]
[378676418,1754956232928,-500.0,0.00016337,2]
[378676421,1754956232938,-151.0,0.00016337,2]
[378676422,1754956232947,-151.0,0.00016337,2]
[378676423,1754956232956,-500.0,0.00016337,2]
[378676424,1754956232966,-500.0,0.00016337,2]
[378676425,1754956232975,-151.0,0.00016337,2]
[378676426,1754956232984,-151.0,0.00016337,2]
[378676427,1754956232994,-500.0,0.00016337,2]
[378676428,1754956233003,-500.0,0.00016337,2]
[378676429,1754956233012,-151.0,0.00016337,2]
[378676430,1754956233022,-151.0,0.00016337,2]
[378676431,1754956233031,-500.0,0.00016337,2]
[378676432,1754956233040,-500.0,0.00016337,2]
[378676433,1754956233049,-151.0,0.00016337,2]
[378676434,1754956233058,-500.0,0.00016337,2]
[378676435,1754956233067,-500.0,0.00016337,2]
[378676436,1754956233077,-151.0,0.00016337,2]
[378676437,1754956233086,-500.0,0.00016337,2]
[378676438,1754956233095,-500.0,0.00016337,2]
[378676439,1754956233104,-500.0,0.00016337,2]
[378676440,1754956233113,-151.0,0.00016337,2]
[378676441,1754956233122,-500.0,0.00016337,2]
[378676442,1754956233132,-151.0,0.00016337,2]
[378676443,1754956233141,-151.0,0.00016337,2]
[378676445,1754956233150,-151.0,0.00016337,2]
[378676447,1754956233159,-151.0,0.00016337,2]
[378676449,1754956233169,-151.0,0.00016337,2]
[378676451,1754956233178,-151.0,0.00016337,2]
[378676453,1754956233188,-151.0,0.00016337,2]
[378676455,1754956233197,-151.0,0.00016337,2]
[378676457,1754956233207,-151.0,0.00016337,2]
[378676459,1754956233216,-151.0,0.00016337,2]
[378676461,1754956233225,-8354.32389162,0.00016338,2]
[378676463,1754956233234,-2815.08517591,0.00016346,2]
[378676465,1754956233244,-2500.0,0.00016346,2]
[378676467,1754956233253,-5000.0,0.00016346,2]
[378676469,1754956233264,-2151.6508,0.00016347,2]
[378676471,1754956233273,-25143.8119,0.00016347,2]
[378676473,1754956233282,-1000.0,0.00016347,2]
[378676475,1754956233292,-410.35685651,0.00016347,2]
[378676477,1754956233302,-336.1393,0.00016347,2]
[378676478,1754956233311,-162.79896212,0.00016356,2]
[378676480,1754956233321,-2264.10087164,0.00016383,2]
[378676482,1754956233331,-600.0,0.00016388,2]
[378676484,1754956233341,-600.0,0.00016388,2]
[378676486,1754956233350,-600.0,0.00016388,2]
[378676488,1754956233360,-600.0,0.00016388,2]
[378676490,1754956233369,-600.0,0.00016388,2]
[378676493,1754956233380,-508.36,0.00016388,2]
[378676495,1754956233390,-179.96,0.00016394,2]
[378676497,1754956233400,-21129.24832706,0.00016428,2]
[378676499,1754956233409,-390.339574,0.00016438,2]
[378676501,1754956233418,-390.339574,0.00016438,2]
[378676503,1754956233428,-262.110777,0.00016438,2]
[378676505,1754956233437,-151.0,0.00016438,2]
[378676507,1754956233446,-151.0,0.00016438,2]
[378676508,1754956233455,-165.315734,0.00016438,2]
[378676511,1754956233465,-151.0,0.00016438,2]
[378676513,1754956233474,-151.0,0.00016438,2]
[378676515,1754956233484,-150.0,0.00016438,2]
[378676517,1754956233493,-153.26032952,0.00016438,2]
[378676519,1754956233502,-151.0,0.00016438,2]
[378676521,1754956233512,-151.0,0.00016438,2]
[378676523,1754956233522,-151.0,0.00016438,2]
[378676525,1754956233532,-151.0,0.00016438,2]
[378676527,1754956233542,-150.0,0.00016438,2]
[378676529,1754956233551,-150.0,0.00016438,2]
[378676531,1754956233560,-150.0,0.00016438,2]
[378676533,1754956233569,-150.0,0.00016438,2]
[378676535,1754956233578,-200.0,0.00016438,2]
[378676537,1754956233588,-500.0,0.00016438,2]
[378676539,1754956233598,-2603.500865,0.00016438,2]
[378676541,1754956233607,-2603.500865,0.00016438,2]
[378676543,1754956233618,-2603.500865,0.00016438,2]
[378676545,1754956233627,-2603.500865,0.00016438,2]
[378676547,1754956233637,-151.0,0.00016438,2]
[378676549,1754956233646,-151.0,0.00016438,2]
[378676551,1754956233658,-151.0,0.00016438,2]
[378676553,1754956233668,-150.0,0.00016438,2]
[378676555,1754956233680,-151.0,0.00016438,2]
[378676557,1754956233690,-151.0,0.00016438,2]
[378676559,1754956233699,-151.0,0.00016438,2]
[378676561,1754956233709,-1740.1091,0.00016438,2]
[378676563,1754956233719,-1740.1091,0.00016438,2]
[378676565,1754956233728,-1740.1091,0.00016438,2]
[378676567,1754956233738,-1740.1091,0.00016438,2]
[378676569,1754956233748,-1740.1091,0.00016438,2]
[378676571,1754956233758,-1740.1091,0.00016438,2]
[378676573,1754956233769,-151.0,0.00016438,2]
[378676575,1754956233780,-151.0,0.00016438,2]
[378676577,1754956233790,-151.0,0.00016438,2]
[378676579,1754956233801,-151.0,0.00016438,2]
[378676581,1754956233811,-165.482774,0.00016438,2]
[378676583,1754956233821,-500.0,0.00016438,2]
[378676585,1754956233831,-150.0,0.00016438,2]
[378676587,1754956233840,-150.0,0.00016438,2]
[378676588,1754956233851,-246.03376212,0.00016438,2]
[378676590,1754956233860,-150.0,0.00016438,2]
[378676592,1754956233870,-500.0,0.00016438,2]
[378676594,1754956233880,-151.25074637,0.00016438,2]
[378676596,1754956233889,-2347.87260389,0.00016438,2]
[378676597,1754956233899,-547.0,0.00016438,2]
[378676600,1754956233909,-547.0,0.00016438,2]
[378676601,1754956233919,-547.0,0.00016438,2]
[378676604,1754956233929,-547.0,0.00016438,2]
[378676605,1754956233939,-547.0,0.00016438,2]
[378676608,1754956233948,-547.0,0.00016438,2]
[378676609,1754956233958,-547.0,0.00016438,2]
[378676611,1754956233968,-547.0,0.00016438,2]
[378676614,1754956233978,-547.0,0.00016438,2]
[378676615,1754956233988,-547.0,0.00016438,2]
[378676618,1754956233998,-547.0,0.00016438,2]
[378676620,1754956234007,-547.0,0.00016438,2]
[378676622,1754956234017,-547.0,0.00016438,2]
[378676623,1754956234027,-153.0,0.00016438,2]
[378676625,1754956234037,-153.0,0.00016438,2]
[378676627,1754956234047,-153.0,0.00016438,2]
[378676629,1754956234056,-153.0,0.00016438,2]
[378676631,1754956234066,-153.0,0.00016438,2]
[378676633,1754956234076,-153.0,0.00016438,2]
[378676635,1754956234086,-153.0,0.00016438,2]
[378676637,1754956234096,-153.0,0.00016438,2]
[378676639,1754956234105,-153.0,0.00016438,2]
[378676641,1754956234115,-153.0,0.00016438,2]
[378676663,1754956234282,-547.0,0.00016438,2]
[378676667,1754956234336,-547.0,0.00016438,2]
[378676669,1754956234345,-547.0,0.00016438,2]
[378676671,1754956234355,-547.0,0.00016438,2]
[378676673,1754956234364,-547.0,0.00016438,2]
[378676675,1754956234374,-547.0,0.00016438,2]
[378676677,1754956234383,-547.0,0.00016438,2]
[378676679,1754956234393,-547.0,0.00016438,2]
[378676681,1754956234403,-547.0,0.00016438,2]
[378676683,1754956234412,-547.0,0.00016438,2]
[378676685,1754956234421,-547.0,0.00016438,2]
[378676687,1754956234431,-547.0,0.00016438,2]
[378676689,1754956234440,-547.0,0.00016438,2]
[378676691,1754956234450,-547.0,0.00016438,2]
[378676693,1754956234459,-153.0,0.00016438,2]
[378676695,1754956234468,-153.0,0.00016438,2]
[378676697,1754956234478,-153.0,0.00016438,2]
[378676699,1754956234487,-153.0,0.00016438,2]
[378676701,1754956234497,-153.0,0.00016438,2]
[378676703,1754956234507,-153.0,0.00016438,2]
[378676705,1754956234516,-153.0,0.00016438,2]
[378676707,1754956234528,-153.0,0.00016438,2]
[378676709,1754956234537,-153.0,0.00016438,2]
[378676711,1754956234547,-153.0,0.00016438,2]
[378676713,1754956234557,-153.0,0.00016438,2]
[378676715,1754956234567,-153.0,0.00016438,2]
[378676717,1754956234576,-153.0,0.00016438,2]
[378676719,1754956234586,-600.0,0.00016438,2]
[378676721,1754956234596,-600.0,0.00016438,2]
[378676723,1754956234606,-600.0,0.00016438,2]
[378676725,1754956234616,-600.0,0.00016438,2]
[378676727,1754956234625,-600.0,0.00016438,2]
[378676729,1754956234635,-600.0,0.00016438,2]
[378676731,1754956234644,-600.0,0.00016438,2]
[378676733,1754956234654,-600.0,0.00016438,2]
[378676735,1754956234664,-600.0,0.00016438,2]
[378676737,1754956234674,-600.0,0.00016438,2]
[378676739,1754956234685,-600.0,0.00016438,2]
[378676741,1754956234695,-169.74757939,0.0001644,2]
[378676742,1754956234704,-400.0,0.00016445,2]
[378676743,1754956234715,-400.0,0.00016445,2]
[378676744,1754956234725,-400.0,0.00016445,2]
[378676745,1754956234734,-400.0,0.00016445,2]
[378676746,1754956234743,-476.86,0.00016445,2]
[378676747,1754956234754,-400.0,0.00016445,2]
[378676748,1754956234764,-679.66,0.00016445,2]
[378676749,1754956234773,-400.0,0.00016445,2]
[378676750,1754956234784,-451.66,0.00016445,2]
[378676751,1754956234794,-400.0,0.00016446,2]
[378676752,1754956234803,-400.0,0.00016446,2]
[378676753,1754956234812,-400.0,0.00016446,2]
[378676754,1754956234821,-400.0,0.00016446,2]
[378676755,1754956234830,-400.0,0.00016446,2]
[378676756,1754956234840,-400.0,0.00016446,2]
[378676757,1754956234850,-390.339574,0.00016446,2]
[378676758,1754956234859,-390.339574,0.00016446,2]
[378676759,1754956234869,-390.339574,0.00016446,2]
[378676760,1754956234879,-390.339574,0.00016446,2]
[378676761,1754956234888,-400.0,0.00016446,2]
[378676762,1754956234899,-400.0,0.00016446,2]
[378676763,1754956234908,-400.0,0.00016446,2]
[378676764,1754956234918,-400.0,0.00016446,2]
[378676765,1754956234927,-400.0,0.00016446,2]
[378676766,1754956234936,-400.0,0.00016446,2]
[378676767,1754956234946,-400.0,0.00016446,2]
[378676768,1754956234955,-400.0,0.00016446,2]
[378676769,1754956234965,-400.0,0.00016446,2]
[378676770,1754956234974,-400.0,0.00016446,2]
[378676771,1754956234984,-400.0,0.00016446,2]
[378676772,1754956234994,-400.0,0.00016446,2]
[378676773,1754956235004,-400.0,0.00016446,2]
[378676774,1754956235013,-400.0,0.00016446,2]
[378676775,1754956235023,-400.0,0.00016446,2]
[378676776,1754956235032,-400.0,0.00016446,2]
[378676777,1754956235041,-192.72,0.00016446,2]
[378676778,1754956235050,-400.0,0.00016446,2]
[378676779,1754956235059,-400.0,0.00016446,2]
[378676780,1754956235068,-400.0,0.00016446,2]
[378676781,1754956235078,-400.0,0.00016446,2]
[378676782,1754956235087,-400.0,0.00016446,2]
[378676783,1754956235096,-400.0,0.00016446,2]
[378676784,1754956235105,-400.0,0.00016446,2]
[378676785,1754956235114,-500.0,0.00016446,2]
[378676786,1754956235124,-400.0,0.00016446,2]
[378676787,1754956235133,-400.0,0.00016446,2]
[378676788,1754956235142,-400.0,0.00016446,2]
[378676789,1754956235151,-400.0,0.00016446,2]
[378676790,1754956235160,-400.0,0.00016446,2]
[378676791,1754956235169,-400.0,0.00016446,2]
[378676792,1754956235179,-400.0,0.00016446,2]
[378676793,1754956235188,-400.0,0.00016446,2]
[378676794,1754956235197,-400.0,0.00016446,2]
[378676795,1754956235206,-400.0,0.00016446,2]
[378676796,1754956235216,-400.0,0.00016446,2]
[378676797,1754956235225,-400.0,0.00016446,2]
[378676798,1754956235235,-400.0,0.00016446,2]
[378676799,1754956235244,-400.0,0.00016446,2]
[378676800,1754956235253,-400.0,0.00016446,2]
[378676801,1754956235262,-400.0,0.00016446,2]
[378676802,1754956235272,-400.0,0.00016446,2]
[378676803,1754956235282,-400.0,0.00016446,2]
[378676804,1754956235291,-400.0,0.00016446,2]
[378676805,1754956235301,-400.0,0.00016446,2]
[378676806,1754956235310,-400.0,0.00016446,2]
[378676807,1754956235319,-400.0,0.00016446,2]
[378676808,1754956235328,-400.0,0.00016446,2]
[378676809,1754956235338,-400.0,0.00016446,2]
[378676810,1754956235347,-400.0,0.00016446,2]
[378676811,1754956235357,-500.0,0.00016446,2]
[378676812,1754956235366,-400.0,0.00016446,2]
[378676813,1754956235376,-400.0,0.00016446,2]
[378676814,1754956235386,-400.0,0.00016446,2]
[378676815,1754956235395,-151.0,0.00016446,2]
[378676816,1754956235405,-151.0,0.00016446,2]
[378676817,1754956235415,-400.0,0.00016446,2]